Workbook

Sheet Main
B1: Instructions
B2: Save the RS internet page (http://weather.uwyo.edu/upperair/sounding.html) in txt format in your computer in a disc and folder your prefer | C2: ATTENTION: do not copy the RS in a text file and save it! Do not use Include frost point calculations AND Recalculate Data
B3: Eventually rename the RS as you like, example "20160101 00z Linate.txt"
B4: Configure this program (see config below)
B5: Click the button to activate the program
B6: Click on the right link to see the result | C6: RS-New'!A1
B8: Config
B9: DRIVE with RS | C9: S:
B10: FOLDER with RS (NO slash at the end) | C10: \Radiosondaggi
B12: Graph
B14: Max Graph Height [metri] | C14: 2000
B15: Temperatura Min Grafico [gradi] | C15: -15
B16: Reset Graph to Autoscale

Sheet Rs-Origin
B2: 10868 | C2: Muenchen-Oberschlssheim | D2: Observations | E2: at | F2: 12Z | G2: 3 | H2: Jan | I2: 2016
A4: -----------------------------------------------------------------------------
B5: PRES | C5: HGHT | D5: TEMP | E5: DWPT | F5: RELH | G5: MIXR | H5: DRCT | I5: SKNT | J5: THTA | K5: THTE | L5: THTV
B6: hPa | C6: m | D6: C | E6: C | F6: % | G6: g/kg | H6: deg | I6: knot | J6: K | K6: K | L6: K
A7: -----------------------------------------------------------------------------
B8: 1000 | C8: 100
B9: 953 | C9: 492 | D9: 0.2 | E9: -1.6 | F9: 88 | G9: 3.58 | H9: 55 | I9: 2 | J9: 277.1 | K9: 287.2 | L9: 277.7
B10: 936 | C10: 635 | D10: -2.2 | E10: -2.6 | F10: 97 | G10: 3.38 | H10: 335 | I10: 2 | J10: 276.2 | K10: 285.6 | L10: 276.7
B11: 935 | C11: 643 | D11: -2.3 | E11: -2.7 | F11: 97 | G11: 3.37 | H11: 328 | I11: 3 | J11: 276.1 | K11: 285.5 | L11: 276.7
B12: 928 | C12: 703 | D12: 1.4 | E12: 1 | F12: 97 | G12: 4.45 | H12: 277 | I12: 8 | J12: 280.5 | K12: 293 | L12: 281.2
B13: 925 | C13: 729 | D13: 1.4 | E13: 1 | F13: 97 | G13: 4.47 | H13: 255 | I13: 10 | J13: 280.7 | K13: 293.3 | L13: 281.5
B14: 923 | C14: 746 | D14: 1.5 | E14: 1.1 | F14: 97 | G14: 4.5 | H14: 255 | I14: 10 | J14: 281 | K14: 293.7 | L14: 281.8
B15: 920 | C15: 773 | D15: 1.6 | E15: 1.2 | F15: 97 | G15: 4.56 | H15: 258 | I15: 11 | J15: 281.4 | K15: 294.2 | L15: 282.1
B16: 905 | C16: 904 | D16: 0.9 | E16: 0.5 | F16: 97 | G16: 4.42 | H16: 275 | I16: 16 | J16: 282 | K16: 294.5 | L16: 282.8
B17: 889 | C17: 1047 | D17: 0.2 | E17: -0.2 | F17: 97 | G17: 4.26 | H17: 290 | I17: 14 | J17: 282.7 | K17: 294.8 | L17: 283.4
B18: 861 | C18: 1304 | D18: -1.2 | E18: -1.5 | F18: 98 | G18: 4 | H18: 255 | I18: 8 | J18: 283.9 | K18: 295.4 | L18: 284.6
B19: 850 | C19: 1407 | D19: -1.7 | E19: -2 | F19: 98 | G19: 3.9 | H19: 260 | I19: 10 | J19: 284.4 | K19: 295.6 | L19: 285
B20: 839 | C20: 1509 | D20: -2.4 | E20: -2.7 | F20: 98 | G20: 3.75 | H20: 255 | I20: 10 | J20: 284.7 | K20: 295.5 | L20: 285.3
B21: 793 | C21: 1950 | D21: -5.3 | E21: -5.7 | F21: 97 | G21: 3.16 | H21: 295 | I21: 12 | J21: 286.2 | K21: 295.4 | L21: 286.7
B22: 759 | C22: 2293 | D22: -7.6 | E22: -8.1 | F22: 97 | G22: 2.76 | H22: 290 | I22: 14 | J22: 287.3 | K22: 295.5 | L22: 287.8
B23: 745 | C23: 2439 | D23: -8.6 | E23: -9.1 | F23: 97 | G23: 2.6 | H23: 305 | I23: 12 | J23: 287.8 | K23: 295.5 | L23: 288.2
B24: 713 | C24: 2783 | D24: -10.9 | E24: -11.4 | F24: 96 | G24: 2.25 | H24: 273 | I24: 10 | J24: 288.9 | K24: 295.7 | L24: 289.3
B25: 710 | C25: 2815 | D25: -11.1 | E25: -12.5 | F25: 89 | G25: 2.07 | H25: 270 | I25: 10 | J25: 289 | K25: 295.2 | L25: 289.3
B26: 700 | C26: 2924 | D26: -11.9 | E26: -16.3 | F26: 70 | G26: 1.54 | H26: 305 | I26: 4 | J26: 289.3 | K26: 294 | L26: 289.6
B27: 698 | C27: 2946 | D27: -11.9 | E27: -18.9 | F27: 56 | G27: 1.24 | H27: 304 | I27: 4 | J27: 289.5 | K27: 293.4 | L27: 289.7
B28: 663 | C28: 3339 | D28: -12.9 | E28: -15 | F28: 84 | G28: 1.81 | H28: 295 | I28: 3 | J28: 292.7 | K28: 298.3 | L28: 293
B29: 632 | C29: 3704 | D29: -14.3 | E29: -18.3 | F29: 72 | G29: 1.44 | H29: 285 | I29: 2 | J29: 295.1 | K29: 299.7 | L29: 295.4
B30: 628 | C30: 3752 | D30: -13.9 | E30: -18.4 | F30: 69 | G30: 1.44 | H30: 284 | I30: 2 | J30: 296.1 | K30: 300.7 | L30: 296.4
B31: 615 | C31: 3910 | D31: -14.8 | E31: -19.6 | F31: 67 | G31: 1.33 | H31: 280 | I31: 2 | J31: 296.9 | K31: 301.2 | L31: 297.1
B32: 565 | C32: 4549 | D32: -18.3 | E32: -24.3 | F32: 59 | G32: 0.95 | H32: 250 | I32: 8 | J32: 300 | K32: 303.2 | L32: 300.2
B33: 549 | C33: 4761 | D33: -20 | E33: -25.5 | F33: 61 | G33: 0.88 | H33: 240 | I33: 10 | J33: 300.5 | K33: 303.4 | L33: 300.6
B34: 500 | C34: 5450 | D34: -25.5 | E34: -29.5 | F34: 69 | G34: 0.67 | H34: 315 | I34: 6 | J34: 301.9 | K34: 304.2 | L34: 302
B35: 432 | C35: 6495 | D35: -33.7 | E35: -40.7 | F35: 49 | G35: 0.25 | H35: 246 | I35: 5 | J35: 304.3 | K35: 305.3 | L35: 304.4
B36: 419 | C36: 6708 | D36: -35.7 | E36: -41.7 | F36: 54 | G36: 0.24 | H36: 232 | I36: 4 | J36: 304.4 | K36: 305.3 | L36: 304.5
B37: 412 | C37: 6826 | D37: -36.5 | E37: -46.5 | F37: 35 | G37: 0.14 | H37: 224 | I37: 4 | J37: 304.9 | K37: 305.4 | L37: 304.9
B38: 400 | C38: 7030 | D38: -38.5 | E38: -46.5 | F38: 43 | G38: 0.15 | H38: 210 | I38: 4 | J38: 304.9 | K38: 305.4 | L38: 304.9
B39: 390 | C39: 7203 | D39: -40.1 | E39: -47.1 | F39: 47 | G39: 0.14 | H39: 198 | I39: 4 | J39: 305 | K39: 305.5 | L39: 305
B40: 383 | C40: 7326 | D40: -41.1 | E40: -51.1 | F40: 33 | G40: 0.09 | H40: 190 | I40: 4 | J40: 305.3 | K40: 305.6 | L40: 305.3
B41: 376 | C41: 7451 | D41: -42.1 | E41: -55.1 | F41: 23 | G41: 0.06 | H41: 208 | I41: 5 | J41: 305.6 | K41: 305.8 | L41: 305.6
B42: 356 | C42: 7814 | D42: -45.1 | E42: -57.3 | F42: 24 | G42: 0.05 | H42: 260 | I42: 10 | J42: 306.3 | K42: 306.5 | L42: 306.3
B43: 339 | C43: 8140 | D43: -47.8 | E43: -59.2 | F43: 26 | G43: 0.04 | H43: 265 | I43: 21 | J43: 306.9 | K43: 307.1 | L43: 306.9
B44: 330 | C44: 8319 | D44: -49.3 | E44: -60.3 | F44: 26 | G44: 0.03 | H44: 295 | I44: 27 | J44: 307.3 | K44: 307.4 | L44: 307.3
B45: 327 | C45: 8378 | D45: -49.4 | E45: -62.5 | F45: 20 | G45: 0.03 | H45: 305 | I45: 29 | J45: 307.9 | K45: 308 | L45: 307.9
B46: 311 | C46: 8706 | D46: -50.1 | E46: -74.2 | F46: 4 | G46: 0.01 | H46: 320 | I46: 43 | J46: 311.4 | K46: 311.4 | L46: 311.4
B47: 307 | C47: 8790 | D47: -50.3 | E47: -77.3 | F47: 3 | G47: 0 | H47: 318 | I47: 43 | J47: 312.3 | K47: 312.3 | L47: 312.3
B48: 300 | C48: 8940 | D48: -51.3 | E48: -70.3 | F48: 9 | G48: 0.01 | H48: 315 | I48: 43 | J48: 312.9 | K48: 313 | L48: 312.9
B49: 286 | C49: 9250 | D49: -53.3 | E49: -68.3 | F49: 14 | G49: 0.01 | H49: 318 | I49: 49 | J49: 314.4 | K49: 314.4 | L49: 314.4
B50: 280 | C50: 9386 | D50: -53.9 | E50: -77.9 | F50: 4 | G50: 0 | H50: 319 | I50: 51 | J50: 315.4 | K50: 315.4 | L50: 315.4
B51: 277 | C51: 9455 | D51: -54.2 | E51: -77.5 | F51: 4 | G51: 0 | H51: 320 | I51: 52 | J51: 316 | K51: 316 | L51: 316
B52: 253 | C52: 10034 | D52: -56.5 | E52: -74.5 | F52: 9 | G52: 0.01 | H52: 315 | I52: 43 | J52: 320.9 | K52: 320.9 | L52: 320.9
B53: 250 | C53: 10110 | D53: -55.9 | E53: -76.9 | F53: 6 | G53: 0 | H53: 315 | I53: 47 | J53: 322.8 | K53: 322.9 | L53: 322.8
B54: 237 | C54: 10450 | D54: -55.4 | E54: -80.5 | F54: 3 | G54: 0 | H54: 330 | I54: 45 | J54: 328.5 | K54: 328.5 | L54: 328.5
B55: 224 | C55: 10809 | D55: -55 | E55: -84.4 | F55: 1 | G55: 0 | H55: 310 | I55: 43 | J55: 334.6 | K55: 334.6 | L55: 334.6
B56: 203 | C56: 11435 | D56: -54.1 | E56: -91.1 | F56: 0 | G56: 0 | H56: 310 | I56: 41 | J56: 345.5 | K56: 345.5 | L56: 345.5
B57: 200 | C57: 11530 | D57: -54.1 | E57: -91.1 | F57: 0 | G57: 0 | H57: 310 | I57: 41 | J57: 346.9 | K57: 346.9 | L57: 346.9
B58: 183 | C58: 12098 | D58: -54.5 | E58: -91.2 | F58: 0 | G58: 0 | H58: 310 | I58: 33 | J58: 355.1 | K58: 355.1 | L58: 355.1
B59: 153 | C59: 13243 | D59: -55.4 | E59: -91.5 | F59: 0 | G59: 0 | H59: 310 | I59: 37 | J59: 372.3 | K59: 372.3 | L59: 372.3
B60: 150 | C60: 13370 | D60: -55.5 | E60: -91.5 | F60: 0 | G60: 0 | H60: 305 | I60: 43 | J60: 374.2 | K60: 374.2 | L60: 374.2
B61: 144 | C61: 13629 | D61: -55.6 | E61: -91.6 | F61: 0 | G61: 0 | H61: 295 | I61: 43 | J61: 378.5 | K61: 378.5 | L61: 378.5
B62: 132 | C62: 14180 | D62: -55.8 | E62: -91.8 | F62: 0 | G62: 0 | H62: 295 | I62: 45 | J62: 387.7 | K62: 387.7 | L62: 387.7
B63: 119 | C63: 14837 | D63: -56 | E63: -92 | F63: 0 | G63: 0 | H63: 300 | I63: 39 | J63: 399 | K63: 399 | L63: 399
B64: 114 | C64: 15109 | D64: -56 | E64: -92 | F64: 0 | G64: 0 | H64: 285 | I64: 43 | J64: 403.8 | K64: 403.8 | L64: 403.8
B65: 100 | C65: 15940 | D65: -56.3 | E65: -92.3 | F65: 0 | G65: 0 | H65: 300 | I65: 37 | J65: 418.7 | K65: 418.7 | L65: 418.7
B66: 90.7 | C66: 16563 | D66: -54.9 | E66: -90.9 | F66: 0 | G66: 0 | H66: 290 | I66: 41 | J66: 433.3 | K66: 433.3 | L66: 433.3
B67: 86 | C67: 16901 | D67: -55.6 | E67: -91.3 | F67: 0 | G67: 0 | H67: 285 | I67: 43 | J67: 438.6 | K67: 438.6 | L67: 438.6
B68: 77 | C68: 17604 | D68: -56.9 | E68: -92.3 | F68: 0 | G68: 0 | H68: 310 | I68: 33 | J68: 449.8 | K68: 449.9 | L68: 449.8
B69: 72 | C69: 18031 | D69: -57.8 | E69: -92.9 | F69: 0 | G69: 0 | H69: 310 | I69: 21 | J69: 456.8 | K69: 456.8 | L69: 456.8
B70: 70 | C70: 18210 | D70: -58.1 | E70: -93.1 | F70: 0 | G70: 0 | H70: 290 | I70: 19 | J70: 459.7 | K70: 459.8 | L70: 459.7
B71: 68 | C71: 18393 | D71: -58.1 | E71: -93.1 | F71: 0 | G71: 0 | H71: 270 | I71: 25 | J71: 463.6 | K71: 463.6 | L71: 463.6
B72: 62 | C72: 18975 | D72: -58 | E72: -93 | F72: 0 | G72: 0 | H72: 285 | I72: 49 | J72: 476.1 | K72: 476.1 | L72: 476.1
B73: 54 | C73: 19845 | D73: -58 | E73: -93 | F73: 0 | G73: 0 | H73: 275 | I73: 31 | J73: 495.5 | K73: 495.5 | L73: 495.5
B74: 51 | C74: 20205 | D74: -57.9 | E74: -92.9 | F74: 0 | G74: 0 | H74: 260 | I74: 35 | J74: 503.7 | K74: 503.7 | L74: 503.7
B75: 50 | C75: 20330 | D75: -57.9 | E75: -92.9 | F75: 0 | G75: 0 | H75: 260 | I75: 33 | J75: 506.6 | K75: 506.6 | L75: 506.6
B76: 48 | C76: 20587 | D76: -58.2 | E76: -93.2 | F76: 0 | G76: 0 | H76: 275 | I76: 41 | J76: 511.9 | K76: 511.9 | L76: 511.9
B77: 44.1 | C77: 21120 | D77: -58.7 | E77: -93.7 | F77: 0 | G77: 0 | H77: 275 | I77: 50 | J77: 523.1 | K77: 523.2 | L77: 523.1
B78: 44 | C78: 21134 | D78: -58.7 | E78: -93.7 | F78: 0 | G78: 0 | H78: 275 | I78: 51 | J78: 523.4 | K78: 523.4 | L78: 523.4
B79: 39 | C79: 21883 | D79: -61 | E79: -95.5 | F79: 0 | G79: 0 | H79: 265 | I79: 37 | J79: 535.9 | K79: 536 | L79: 535.9
B80: 37 | C80: 22210 | D80: -62 | E80: -96.3 | F80: 0 | G80: 0 | H80: 260 | I80: 39 | J80: 541.5 | K80: 541.5 | L80: 541.5
B81: 35 | C81: 22555 | D81: -63.1 | E81: -97.1 | F81: 0 | G81: 0 | H81: 273 | I81: 41 | J81: 547.4 | K81: 547.4 | L81: 547.4
B82: 34 | C82: 22735 | D82: -62.5 | E82: -96.7 | F82: 0 | G82: 0 | H82: 280 | I82: 43 | J82: 553.5 | K82: 553.5 | L82: 553.5
B83: 30 | C83: 23510 | D83: -59.9 | E83: -94.9 | F83: 0 | G83: 0 | H83: 280 | I83: 52 | J83: 580.8 | K83: 580.8 | L83: 580.8
B84: 27 | C84: 24171 | D84: -58.1 | E84: -93.1 | F84: 0 | G84: 0 | H84: 280 | I84: 58 | J84: 603.5 | K84: 603.5 | L84: 603.5
B85: 26.3 | C85: 24336 | D85: -57.7 | E85: -92.7 | F85: 0 | G85: 0 | H85: 278 | I85: 54 | J85: 609.2 | K85: 609.3 | L85: 609.2
B86: 25 | C86: 24654 | D86: -58.4 | E86: -93.2 | F86: 0 | G86: 0 | H86: 275 | I86: 47 | J86: 616.2 | K86: 616.2 | L86: 616.2
B87: 21 | C87: 25745 | D87: -60.7 | E87: -94.8 | F87: 0 | G87: 0 | H87: 270 | I87: 54 | J87: 640.8 | K87: 640.8 | L87: 640.8
B88: 20 | C88: 26050 | D88: -61.3 | E88: -95.3 | F88: 0 | G88: 0 | H88: 270 | I88: 56 | J88: 647.8 | K88: 647.8 | L88: 647.8
B89: 19.7 | C89: 26144 | D89: -61.5 | E89: -95.5 | F89: 0 | G89: 0 | H89: 269 | I89: 59 | J89: 650 | K89: 650 | L89: 650
B90: 18 | C90: 26709 | D90: -60.1 | E90: -94.8 | F90: 0 | G90: 0 | H90: 265 | I90: 76 | J90: 671.5 | K90: 671.5 | L90: 671.5
B91: 17 | C91: 27067 | D91: -59.2 | E91: -94.3 | F91: 0 | G91: 0 | H91: 275 | I91: 85 | J91: 685.4 | K91: 685.5 | L91: 685.4
B92: 16 | C92: 27446 | D92: -58.2 | E92: -93.8 | F92: 0 | G92: 0 | H92: 270 | I92: 80 | J92: 700.5 | K92: 700.6 | L92: 700.5
B93: 15.1 | C93: 27809 | D93: -57.3 | E93: -93.3 | F93: 0 | G93: 0 | H93: 271 | I93: 85 | J93: 715.2 | K93: 715.3 | L93: 715.2
B94: 13.3 | C94: 28608 | D94: -59.1 | E94: -94.1 | F94: 0 | G94: 0 | H94: 272 | I94: 97 | J94: 735.5 | K94: 735.5 | L94: 735.5
B95: 10 | C95: 30440 | D95: -48.7 | E95: -86.7 | F95: 0 | G95: 0.02 | H95: 275 | I95: 124 | J95: 836.7 | K95: 836.9 | L95: 836.7
B96: 9 | C96: 31149 | D96: -45.2 | E96: -84.5 | F96: 0 | G96: 0.04 | H96: 270 | I96: 109 | J96: 875.8 | K96: 876.3 | L96: 875.8
B97: 7.2 | C97: 32651 | D97: -37.7 | E97: -79.7 | F97: 0 | G97: 0.1 | H97: 283 | I97: 143 | J97: 964 | K97: 965.4 | L97: 964.1
B98: 6.6 | C98: 33247 | D98: -40.5 | E98: -81.5 | F98: 0 | G98: 0.08 | H98: 288 | I98: 156 | J98: 976.5 | K98: 977.7 | L98: 976.6
B99: 6.4 | C99: 33459 | D99: -39.4 | E99: -80.9 | F99: 0 | G99: 0.09 | H99: 290 | I99: 161 | J99: 989.8 | K99: 991.1 | L99: 989.9
B100: 6 | C100: 33903 | D100: -37.1 | E100: -79.6 | F100: 0 | G100: 0.12 | H100: 290 | I100: 161 | J100: 1018.1 | K100: 1020 | L100: 1018.2
B101: 5.8 | C101: 34136 | D101: -35.9 | E101: -78.9 | F101: 0 | G101: 0.14 | H101: 1033.3 | I101: 1035.4 | J101: 1033.4
B104: Station | C104: information | D104: and | E104: sounding | F104: indices
B106: Station | C106: number: | D106: 10868
B107: Observation | C107: time: | D107: 160103/1200
B108: Station | C108: latitude: | D108: 48.25
B109: Station | C109: longitude: | D109: 11.55
B110: Station | C110: elevation: | D110: 492
B111: Showalter | C111: index: | D111: 6.61
B112: Lifted | C112: index: | D112: 9.92
B113: LIFT | C113: computed | D113: using | E113: virtual | F113: temperature: | G113: 9.97
B114: SWEAT | C114: index: | D114: 25.25
B115: K | C115: index: | D115: 17.4
B116: Cross | C116: totals | D116: index: | E116: 23.5
B117: Vertical | C117: totals | D117: index: | E117: 23.8
B118: Totals | C118: totals | D118: index: | E118: 47.3
B119: Convective | C119: Available | D119: Potential | E119: Energy: | F119: 0
B120: CAPE | C120: using | D120: virtual | E120: temperature: | F120: 0
B121: Convective | C121: Inhibition: | D121: 0
B122: CINS | C122: using | D122: virtual | E122: temperature: | F122: 0
B123: Bulk | C123: Richardson | D123: Number: | E123: 0
B124: Bulk | C124: Richardson | D124: Number | E124: using | F124: CAPV: | G124: 0
B125: Temp | C125: [K] | D125: of | E125: the | F125: Lifted | G125: Condensation | H125: Level: | I125: 272.67
A126: Pres | B126: [hPa] | C126: of | D126: the | E126: Lifted | F126: Condensation | G126: Level: | H126: 915.34
B127: Mean | C127: mixed | D127: layer | E127: potential | F127: temperature: | G127: 279.67
B128: Mean | C128: mixed | D128: layer | E128: mixing | F128: ratio: | G128: 4.08
B129: 1000 | C129: hPa | D129: to | E129: 500 | F129: hPa | G129: thickness: | H129: 5350
A130: Precipitable | B130: water | C130: [mm] | D130: for | E130: entire | F130: sounding: | G130: 11.7
A132: Description | B132: of | C132: the | D132: data | E132: columns
A133: <http://weather.uwyo.edu/upperair/columns.html> | B133: or | C133: sounding | D133: indices
A134: <http://weather.uwyo.edu/upperair/indices.html>.
A136: ------------------------------------------------------------------------
A137: /Interested | B137: in | C137: graduate | D137: studies | E137: in | F137: atmospheric | G137: science? | H137: Check | I137: out | J137: our
A138: program | B138: at | C138: the | D138: University | E138: of | F138: Wyoming
A139: <http://www.uwyo.edu/atsc/howtoapply/>/
A140: ------------------------------------------------------------------------
A141: Questions | B141: about | C141: the | D141: weather | E141: data | F141: provided | G141: by | H141: this | I141: site | J141: can | K141: be | L141: addressed
A142: to | B142: Larry | C142: Oolman | D142: (ldoolman@uwyo.edu) | E142: <mailto:ldoolman@uwyo.edu>
A143: ------------------------------------------------------------------------

Sheet RS-New
A1: 10868 | B1: Muenchen-Oberschlssheim | D1: 3 | E1: Jan | F1: 2016 | I1: Go back to Main Sheet | L1: Main!A1
A2: PRES | B2: HGHT | C2: TEMP | D2: DWPT | E2: RELH | F2: MIXR | G2: DRCT | H2: SKNT | I2: THTA | J2: THTE | K2: THTV | L2: DP | M2: WB
A3: hPa | B3: m | C3: C | D3: C | E3: % | F3: g/kg | G3: deg | H3: knot | I3: K | J3: K | K3: K | L3: °C | M3: °C
A4: 953 | B4: 492 | C4: 0.2 | D4: -1.6 | E4: 88 | F4: 3.58 | G4: 55 | H4: 2 | I4: 277.1 | J4: 287.2 | K4: 277.7 | L4: -1.549529887 | M4: -0.4836512804
A5: 936 | B5: 635 | C5: -2.2 | D5: -2.6 | E5: 97 | F5: 3.38 | G5: 335 | H5: 2 | I5: 276.2 | J5: 285.6 | K5: 276.7 | L5: -2.610805307 | M5: -2.353892088
A6: 935 | B6: 643 | C6: -2.3 | D6: -2.7 | E6: 97 | F6: 3.37 | G6: 328 | H6: 3 | I6: 276.1 | J6: 285.5 | K6: 276.7 | L6: -2.710456806 | M6: -2.453334332
A7: 928 | B7: 703 | C7: 1.4 | D7: 1 | E7: 97 | F7: 4.45 | G7: 277 | H7: 8 | I7: 280.5 | J7: 293 | K7: 281.2 | L7: 0.9765503348 | M7: 1.221694708
A8: 925 | B8: 729 | C8: 1.4 | D8: 1 | E8: 97 | F8: 4.47 | G8: 255 | H8: 10 | I8: 280.7 | J8: 293.3 | K8: 281.5 | L8: 0.9765503348 | M8: 1.221434712
A9: 923 | B9: 746 | C9: 1.5 | D9: 1.1 | E9: 97 | F9: 4.5 | G9: 255 | H9: 10 | I9: 281 | J9: 293.7 | K9: 281.8 | L9: 1.076196372 | M9: 1.320584178
A10: 920 | B10: 773 | C10: 1.6 | D10: 1.2 | E10: 97 | F10: 4.56 | G10: 258 | H10: 11 | I10: 281.4 | J10: 294.2 | K10: 282.1 | L10: 1.175842261 | M10: 1.419645548
A11: 905 | B11: 904 | C11: 0.9 | D11: 0.5 | E11: 97 | F11: 4.42 | G11: 275 | H11: 16 | I11: 282 | J11: 294.5 | K11: 282.8 | L11: 0.4783179363 | M11: 0.7230787873
A12: 889 | B12: 1047 | C12: 0.2 | D12: -0.2 | E12: 97 | F12: 4.26 | G12: 290 | H12: 14 | I12: 282.7 | J12: 294.8 | K12: 283.4 | L12: -0.2192136216 | M12: 0.0263952557
A13: =(A14-A12)/($M14-$M12)*($M13-$M12)+A12 -> 888.4473599 | B13: =(B14-B12)/($M14-$M12)*($M13-$M12)+B12 -> 1052.072447 | C13: 0.1723679945 | D13: -0.2256582908 | E13: 97.01973715 | F13: 4.254868342 | G13: 289.3091999 | H13: 13.88157712 | I13: 282.7236846 | J13: 294.8118423 | K13: 283.4236846 | L13: -0.2439983598 | M13: 0
A14: 861 | B14: 1304 | C14: -1.2 | D14: -1.5 | E14: 98 | F14: 4 | G14: 255 | H14: 8 | I14: 283.9 | J14: 295.4 | K14: 284.6 | L14: -1.474954306 | M14: -1.310943723
A15: 850 | B15: 1407 | C15: -1.7 | D15: -2 | E15: 98 | F15: 3.9 | G15: 260 | H15: 10 | I15: 284.4 | J15: 295.6 | K15: 285 | L15: -1.97379361 | M15: -1.809385419
A16: 839 | B16: 1509 | C16: -2.4 | D16: -2.7 | E16: 98 | F16: 3.75 | G16: 255 | H16: 10 | I16: 284.7 | J16: 295.5 | K16: 285.3 | L16: -2.672172756 | M16: -2.506975651
A17: 793 | B17: 1950 | C17: -5.3 | D17: -5.7 | E17: 97 | F17: 3.16 | G17: 295 | H17: 12 | I17: 286.2 | J17: 295.4 | K17: 286.7 | L17: -5.70007042 | M17: -5.446138382
A18: 759 | B18: 2293 | C18: -7.6 | D18: -8.1 | E18: 97 | F18: 2.76 | G18: 290 | H18: 14 | I18: 287.3 | J18: 295.5 | K18: 287.8 | L18: -7.992197509 | M18: -7.734758377
A19: 745 | B19: 2439 | C19: -8.6 | D19: -9.1 | E19: 97 | F19: 2.6 | G19: 305 | H19: 12 | I19: 287.8 | J19: 295.5 | K19: 288.2 | L19: -8.988798866 | M19: -8.729862213
A20: 713 | B20: 2783 | C20: -10.9 | D20: -11.4 | E20: 96 | F20: 2.25 | G20: 273 | H20: 10 | I20: 288.9 | J20: 295.7 | K20: 289.3 | L20: -11.41038249 | M20: -11.05870533
A21: 710 | B21: 2815 | C21: -11.1 | D21: -12.5 | E21: 89 | F21: 2.07 | G21: 270 | H21: 10 | I21: 289 | J21: 295.2 | K21: 289.3 | L21: -12.54837436 | M21: -11.53763866
A22: 700 | B22: 2924 | C22: -11.9 | D22: -16.3 | E22: 70 | F22: 1.54 | G22: 305 | H22: 4 | I22: 289.3 | J22: 294 | K22: 289.6 | L22: -16.24486376 | M22: -13.08721638
A23: 698 | B23: 2946 | C23: -11.9 | D23: -18.9 | E23: 56 | F23: 1.24 | G23: 304 | H23: 4 | I23: 289.5 | J23: 293.4 | K23: 289.7 | L23: -18.87908827 | M23: -13.67883205
A24: 663 | B24: 3339 | C24: -12.9 | D24: -15 | E24: 84 | F24: 1.81 | G24: 295 | H24: 3 | I24: 292.7 | J24: 298.3 | K24: 293 | L24: -15.02613002 | M24: -13.50473404
A25: 632 | B25: 3704 | C25: -14.3 | D25: -18.3 | E25: 72 | F25: 1.44 | G25: 285 | H25: 2 | I25: 295.1 | J25: 299.7 | K25: 295.4 | L25: -18.2237854 | M25: -15.32197475
A26: 628 | B26: 3752 | C26: -13.9 | D26: -18.4 | E26: 69 | F26: 1.44 | G26: 284 | H26: 2 | I26: 296.1 | J26: 300.7 | K26: 296.4 | L26: -18.33776459 | M26: -15.06497478
A27: 615 | B27: 3910 | C27: -14.8 | D27: -19.6 | E27: 67 | F27: 1.33 | G27: 280 | H27: 2 | I27: 296.9 | J27: 301.2 | K27: 297.1 | L27: -19.54404928 | M27: -15.99501133
A28: 565 | B28: 4549 | C28: -18.3 | D28: -24.3 | E28: 59 | F28: 0.95 | G28: 250 | H28: 8 | I28: 300 | J28: 303.2 | K28: 300.2 | L28: -24.3175664 | M28: -19.56462479
A29: 549 | B29: 4761 | C29: -20 | D29: -25.5 | E29: 61 | F29: 0.88 | G29: 240 | H29: 10 | I29: 300.5 | J29: 303.4 | K29: 300.6 | L29: -25.56109104 | M29: -21.08842087
A30: 500 | B30: 5450 | C30: -25.5 | D30: -29.5 | E30: 69 | F30: 0.67 | G30: 315 | H30: 6 | I30: 301.9 | J30: 304.2 | K30: 302 | L30: -29.49375525 | M30: -26.09393692
A31: 432 | B31: 6495 | C31: -33.7 | D31: -40.7 | E31: 49 | F31: 0.25 | G31: 246 | H31: 5 | I31: 304.3 | J31: 305.3 | K31: 304.4 | L31: -40.68437116 | M31: -33.99744415
A32: 419 | B32: 6708 | C32: -35.7 | D32: -41.7 | E32: 54 | F32: 0.24 | G32: 232 | H32: 4 | I32: 304.4 | J32: 305.3 | K32: 304.5 | L32: -41.64477712 | M32: -35.86212921
A33: 412 | B33: 6826 | C33: -36.5 | D33: -46.5 | E33: 35 | F33: 0.14 | G33: 224 | H33: 4 | I33: 304.9 | J33: 305.4 | K33: 304.9 | L33: -46.34632941 | M33: -36.45204926
A34: 400 | B34: 7030 | C34: -38.5 | D34: -46.5 | E34: 43 | F34: 0.15 | G34: 210 | H34: 4 | I34: 304.9 | J34: 305.4 | K34: 304.9 | L34: -46.33731845 | M34: -38.38559341
A35: 390 | B35: 7203 | C35: -40.1 | D35: -47.1 | E35: 47 | F35: 0.14 | G35: 198 | H35: 4 | I35: 305 | J35: 305.5 | K35: 305 | L35: -47.02984419 | M35: -39.91561127
A36: 383 | B36: 7326 | C36: -41.1 | D36: -51.1 | E36: 33 | F36: 0.09 | G36: 190 | H36: 4 | I36: 305.3 | J36: 305.6 | K36: 305.3 | L36: -51.01269129 | M36: -40.55569077
A37: 376 | B37: 7451 | C37: -42.1 | D37: -55.1 | E37: 23 | F37: 0.06 | G37: 208 | H37: 5 | I37: 305.6 | J37: 305.8 | K37: 305.6 | L37: -54.90139193 | M37: -41.05001831
A38: 356 | B38: 7814 | C38: -45.1 | D38: -57.3 | E38: 24 | F38: 0.05 | G38: 260 | H38: 10 | I38: 306.3 | J38: 306.5 | K38: 306.3 | L38: -57.18698681 | M38: -43.77191544
A39: 339 | B39: 8140 | C39: -47.8 | D39: -59.2 | E39: 26 | F39: 0.04 | G39: 265 | H39: 21 | I39: 306.9 | J39: 307.1 | K39: 306.9 | L39: -58.93988715 | M39: -46.31155014
A40: 330 | B40: 8319 | C40: -49.3 | D40: -60.3 | E40: 26 | F40: 0.03 | G40: 295 | H40: 27 | I40: 307.3 | J40: 307.4 | K40: 307.3 | L40: -60.26967957 | M40: -47.66667938
A41: 327 | B41: 8378 | C41: -49.4 | D41: -62.5 | E41: 20 | F41: 0.03 | G41: 305 | H41: 29 | I41: 307.9 | J41: 308 | K41: 307.9 | L41: -62.34595803 | M41: -47.32725906
A42: 311 | B42: 8706 | C42: -50.1 | D42: -74.2 | E42: 4 | F42: 0.01 | G42: 320 | H42: 43 | I42: 311.4 | J42: 311.4 | K42: 311.4 | L42: -74.15803416 | M42: -44.77557373
A43: 307 | B43: 8790 | C43: -50.3 | D43: -77.3 | E43: 3 | F43: 0 | G43: 318 | H43: 43 | I43: 312.3 | J43: 312.3 | K43: 312.3 | L43: -76.15979596 | M43: -44.31678009
A44: 300 | B44: 8940 | C44: -51.3 | D44: -70.3 | E44: 9 | F44: 0.01 | G44: 315 | H44: 43 | I44: 312.9 | J44: 313 | K44: 312.9 | L44: -69.67244496 | M44: -47.52905655

Sheet DP+WB
A1: Dew Point & Wet Bulb Calculation
A3: Temperature | B3: -51.3 | C3: [°C]
A4: Relative Humidity | B4: 9 | C4: [%]
A5: Absolute Pressure | B5: 300 | C5: [hPa] | D5: (this is not the pressure at sea level)
A8: Dew Point | B8: =B19*B14/(B13*LN(10)-B19) -> -69.67244496 | C8: [°C]
A9: Wet Bulb | B9: =(B27-32)*5/9 -> -47.52905624 | C9: [°C]
A12: dew point
A13: Costante C | B13: 7.5
A14: Costante K | B14: 237.7
A15: Costante Z | B15: 6.11
A16: Variabile D | B16: =(B13*B3)/(B14+B3) -> -2.064109442
A17: Variabile ES | B17: =B15*10^B16 -> 0.05271470351
A18: Variabile E | B18: =B4*B17/100 -> 0.004744323316
A19: Variabile D2 | B19: =LN((B18/B15)) -> -7.16073324
A21: wet bulb
A22: Temperatura | B22: =B3*9/5+32 -> -60.34 | C22: [°F]
A23: Temperatura Dew Point | B23: =B8*9/5+32 -> -93.41040093 | C23: [°F]
A24: Costante A | B24: =(B22-B23)/10 -> 3.307040093
A25: Costante B | B25: =B24-1 -> 2.307040093
A26: Costante D | B26: =B5/33.8639 -> 8.858991433
A27: Temperatura Bulbo Umido | B27: =B22-(0.034*B24-0.00072*B24*B25)*(B22+B23-2*B26+108) -> -53.55230123 | C27: [°F]
